bitfinex-derivatives/quotes_BTCF0:USTF0_20251228
["timestamp","ask_amount","ask_price","bid_price","bid_amount"]
[1766906506316,0.06861559,87754.0,87739.0,0.0114065]
[1766906508915,0.05721099,87754.0,87739.0,0.0114065]
[1766906511922,0.05721099,87754.0,87741.0,0.0114062]
[1766906520434,0.05721099,87754.0,87738.0,0.0684466]
[1766906520632,0.06861559,87754.0,87738.0,0.0684466]
[1766906522336,0.06861559,87754.0,87738.0,0.05704]
[1766906522337,0.0114049,87752.0,87738.0,0.05704]
[1766906526343,0.0114052,87750.0,87738.0,0.05704]
[1766906527148,0.12586731,87750.0,87738.0,0.05704]
[1766906532250,0.11446211,87750.0,87738.0,0.05704]
[1766906541856,0.11446211,87750.0,87738.0,0.0684466]
[1766906546358,0.06861559,87754.0,87738.0,0.0684466]
[1766906546658,0.11446211,87750.0,87738.0,0.0684466]
[1766906556065,0.11446211,87750.0,87738.0,0.05704]
[1766906556969,0.0114049,87752.0,87738.0,0.05704]
[1766906557169,0.11446211,87750.0,87738.0,0.05704]
[1766906558267,0.0114049,87752.0,87738.0,0.05704]
[1766906558470,0.11446211,87750.0,87738.0,0.05704]
[1766906562073,0.0114049,87752.0,87738.0,0.05704]
[1766906567275,0.0114052,87750.0,87738.0,0.05704]
[1766906567470,0.05721099,87754.0,87738.0,0.05704]
[1766906570169,0.0114051,87750.0,87738.0,0.05704]
[1766906576083,0.0114055,87748.0,87738.0,0.05704]
[1766906576576,0.05721099,87754.0,87738.0,0.05704]
[1766906576577,0.0114057,87746.0,87738.0,0.05704]
[1766906576780,0.05721099,87754.0,87738.0,0.05704]
[1766906578280,0.0114056,87747.0,87738.0,0.05704]
[1766906582285,0.05721099,87754.0,87738.0,0.05704]
[1766906582492,0.00017099,87754.0,87738.0,0.05704]
[1766906582793,0.05704,87766.0,87740.0,0.0114064]
[1766906582992,0.05704,87766.0,87741.0,0.09696]
[1766906583390,0.0114041,87758.0,87741.0,0.09696]
[1766906584193,0.0114045,87755.0,87741.0,0.09696]
[1766906587299,0.0114048,87753.0,87741.0,0.09696]
[1766906595010,0.0114044,87756.0,87741.0,0.09696]
[1766906600508,0.0114044,87756.0,87741.0,0.1083662]
[1766906601215,0.011404,87759.0,87741.0,0.1083662]
[1766906602016,0.0114042,87757.0,87741.0,0.1083662]
[1766906618223,0.0114042,87758.0,87743.0,0.0114059]
[1766906618516,0.0114042,87758.0,87744.0,0.05704]
[1766906633725,0.11444766,87760.0,87744.0,0.05704]
[1766906633931,0.0114047,87753.0,87744.0,0.05704]
[1766906637830,0.0114047,87753.0,87741.0,0.05704]
[1766906638933,0.11444766,87751.0,87741.0,0.05704]
[1766906642332,0.10844766,87751.0,87741.0,0.05704]
[1766906642533,0.09644766,87751.0,87741.0,0.05704]
[1766906642729,0.09044766,87751.0,87741.0,0.05704]
[1766906648740,0.09044766,87751.0,87738.0,0.0114065]
[1766906648940,0.09044766,87751.0,87739.0,0.05704]
[1766906649240,0.09044766,87751.0,87738.0,0.0114065]
[1766906649440,0.09044766,87751.0,87739.0,0.05704]
[1766906651243,0.09044766,87751.0,87738.0,0.0114065]
[1766906651442,0.09044766,87751.0,87740.0,0.05704]
[1766906654948,0.09044766,87751.0,87738.0,0.0114065]
[1766906655252,0.09044766,87751.0,87741.0,0.05704]
[1766906660356,0.09044766,87751.0,87738.0,0.0114065]
[1766906660655,0.09044766,87751.0,87739.0,0.05704]
[1766906661448,0.09044766,87751.0,87740.0,0.05704]
[1766906663160,0.09044766,87751.0,87738.0,0.0114065]
[1766906663366,0.09044766,87751.0,87739.0,0.05704]
[1766906665068,0.05704,87756.0,87740.0,0.0114064]
[1766906665260,0.11444766,87750.0,87739.0,0.05704]
[1766906666165,0.11444766,87750.0,87739.0,0.0684465]
[1766906667065,0.11444766,87750.0,87741.0,0.0114062]
[1766906671266,0.11444766,87750.0,87730.0,0.00017099]
[1766906671466,0.01310622,87749.0,87737.0,0.0114067]
[1766906671666,0.01310622,87749.0,87737.0,0.0684867]
[1766906672168,0.11444766,87750.0,87737.0,0.0684867]
[1766906672764,0.11444766,87750.0,87739.0,0.0114064]
[1766906673264,0.12755428,87750.0,87739.0,0.0114064]
[1766906674375,0.11444766,87750.0,87739.0,0.0114064]
[1766906675370,0.11444766,87750.0,87737.0,0.05708]
[1766906681278,0.02428872,87749.0,87737.0,0.05708]
[1766906681479,0.11444766,87750.0,87737.0,0.05708]
[1766906681780,0.02428872,87749.0,87737.0,0.05708]
[1766906681977,0.11444766,87750.0,87737.0,0.05708]
[1766906682178,0.02428872,87749.0,87737.0,0.05708]
[1766906682379,0.11444766,87750.0,87737.0,0.05708]
[1766906682581,0.02428861,87749.0,87737.0,0.05708]
[1766906682780,0.11444766,87750.0,87737.0,0.05708]
[1766906682983,0.02428861,87749.0,87737.0,0.05708]
[1766906683174,0.11444766,87750.0,87737.0,0.05708]
[1766906683375,0.02428852,87749.0,87737.0,0.05708]
[1766906683576,0.11444766,87750.0,87737.0,0.05708]
[1766906683772,0.02428852,87749.0,87737.0,0.05708]
[1766906683977,0.068445,87751.0,87737.0,0.05708]
[1766906684184,0.02428852,87750.0,87737.0,0.05708]
[1766906684386,0.02428852,87749.0,87737.0,0.05708]
[1766906684578,0.068445,87751.0,87737.0,0.05708]
[1766906684878,0.02428846,87750.0,87737.0,0.05708]
[1766906685177,0.02428846,87749.0,87737.0,0.05708]
[1766906685377,0.068445,87751.0,87737.0,0.05708]
[1766906685579,0.02428841,87750.0,87737.0,0.05708]
[1766906685887,0.02428841,87749.0,87737.0,0.05708]
[1766906686086,0.068445,87751.0,87737.0,0.05708]
[1766906686279,0.02428844,87750.0,87737.0,0.05708]
[1766906686584,0.02428844,87749.0,87737.0,0.05708]
[1766906686787,0.068445,87751.0,87737.0,0.05708]
[1766906686981,0.02428844,87750.0,87737.0,0.05708]
[1766906687182,0.02428844,87749.0,87737.0,0.05708]
[1766906687382,0.068445,87751.0,87737.0,0.05708]
[1766906687682,0.02428846,87750.0,87737.0,0.05708]
[1766906687882,0.02428846,87749.0,87737.0,0.05708]
[1766906688183,0.068445,87751.0,87737.0,0.05708]
[1766906688379,0.0242885,87750.0,87737.0,0.05708]
[1766906688579,0.0242885,87749.0,87737.0,0.05708]
[1766906688777,0.068445,87751.0,87737.0,0.05708]
[1766906688979,0.02428851,87750.0,87737.0,0.05708]
[1766906689174,0.068445,87751.0,87737.0,0.05708]
[1766906689175,0.02428851,87749.0,87737.0,0.05708]
[1766906689479,0.068445,87751.0,87737.0,0.05708]
[1766906689676,0.02428857,87750.0,87737.0,0.05708]
[1766906689883,0.02428857,87749.0,87737.0,0.05708]
[1766906690082,0.068445,87751.0,87737.0,0.05708]
[1766906690283,0.02428857,87750.0,87737.0,0.05708]
[1766906690485,0.02428857,87749.0,87737.0,0.05708]
[1766906690686,0.068445,87751.0,87737.0,0.05708]
[1766906690985,0.02428865,87750.0,87737.0,0.05708]
[1766906691184,0.02428865,87749.0,87737.0,0.05708]
[1766906691384,0.068445,87751.0,87737.0,0.05708]
[1766906691584,0.02428875,87750.0,87737.0,0.05708]
[1766906691789,0.02428875,87749.0,87737.0,0.05708]
[1766906691988,0.068445,87751.0,87737.0,0.05708]
[1766906692188,0.02428875,87750.0,87737.0,0.05708]
[1766906692389,0.02428875,87749.0,87737.0,0.05708]
[1766906692590,0.068445,87751.0,87737.0,0.05708]
[1766906692790,0.02428888,87750.0,87737.0,0.05708]
[1766906693090,0.02428888,87749.0,87737.0,0.05708]
[1766906693294,0.068445,87751.0,87737.0,0.05708]
[1766906693486,0.02428904,87750.0,87737.0,0.05708]
[1766906693692,0.02428904,87749.0,87737.0,0.05708]
[1766906693893,0.05704,87751.0,87737.0,0.05708]
[1766906694089,0.02428903,87750.0,87737.0,0.05708]
[1766906694288,0.02428903,87749.0,87737.0,0.05708]
[1766906694490,0.05704,87751.0,87737.0,0.05708]
[1766906694690,0.02428922,87750.0,87737.0,0.05708]
[1766906694887,0.02428922,87749.0,87737.0,0.05708]
[1766906695087,0.05704,87751.0,87737.0,0.05708]
[1766906695386,0.02428922,87750.0,87737.0,0.05708]
[1766906695587,0.02428922,87749.0,87737.0,0.05708]
[1766906695788,0.05704,87751.0,87737.0,0.05708]
[1766906695987,0.02428947,87750.0,87737.0,0.05708]
[1766906696188,0.02428947,87749.0,87737.0,0.05708]
[1766906696387,0.05704,87751.0,87737.0,0.05708]
[1766906696588,0.02428978,87750.0,87737.0,0.05708]
[1766906696789,0.02428978,87749.0,87737.0,0.0684867]
[1766906696991,0.05704,87751.0,87737.0,0.0684867]
[1766906697191,0.02428979,87750.0,87737.0,0.0684867]
[1766906697491,0.02428979,87749.0,87737.0,0.0684867]
[1766906697685,0.05704,87751.0,87737.0,0.0684867]
[1766906697884,0.02429016,87750.0,87737.0,0.0684867]
[1766906698087,0.02429016,87749.0,87737.0,0.0684867]
[1766906698288,0.05704,87751.0,87737.0,0.0684867]
[1766906698483,0.02429061,87750.0,87737.0,0.0684867]
[1766906698699,0.02429061,87749.0,87737.0,0.0684867]
[1766906698995,0.05704,87751.0,87737.0,0.0684867]
[1766906699291,0.02429061,87750.0,87737.0,0.0684867]
[1766906699497,0.05704,87751.0,87737.0,0.0684867]
[1766906699700,0.02429074,87750.0,87737.0,0.0684867]
[1766906699997,0.05704,87751.0,87737.0,0.0684867]
[1766906700297,0.02429074,87750.0,87737.0,0.0684867]
[1766906700499,0.05704,87751.0,87737.0,0.05708]
[1766906700694,0.02429136,87750.0,87737.0,0.05708]
[1766906700895,0.05704,87751.0,87737.0,0.05708]
[1766906701096,0.02429135,87750.0,87737.0,0.05708]
[1766906701295,0.05704,87751.0,87737.0,0.05708]
[1766906701495,0.0242919,87750.0,87737.0,0.05708]
[1766906701696,0.05704,87751.0,87737.0,0.05708]
[1766906701895,0.02429598,87750.0,87737.0,0.05708]
[1766906702095,0.05704,87751.0,87737.0,0.05708]
[1766906702296,0.0242972,87750.0,87737.0,0.05708]
[1766906702497,0.05704,87751.0,87737.0,0.05708]
[1766906702697,0.02429723,87750.0,87737.0,0.05708]
[1766906702896,0.05704,87751.0,87737.0,0.05708]
[1766906703100,0.02429721,87750.0,87737.0,0.05708]
[1766906703299,0.05704,87751.0,87737.0,0.05708]
[1766906703499,0.02429694,87750.0,87737.0,0.05708]
[1766906703700,0.05704,87751.0,87737.0,0.05708]
[1766906703897,0.02429688,87750.0,87737.0,0.05708]
[1766906704097,0.05704,87751.0,87737.0,0.05708]
[1766906704298,0.02429668,87750.0,87737.0,0.05708]
[1766906704604,0.05704,87751.0,87737.0,0.05708]
[1766906704801,0.02429666,87750.0,87737.0,0.05708]
[1766906705011,0.0114051,87750.0,87737.0,0.05708]
[1766906706009,0.0114054,87748.0,87737.0,0.05708]
[1766906706306,0.0114057,87746.0,87733.0,0.05704]
[1766906707906,0.0114057,87746.0,87732.0,0.05708]
[1766906708695,0.0114057,87746.0,87730.0,0.00017099]
[1766906709001,0.0114057,87746.0,87732.0,0.05708]
[1766906711109,0.011406,87744.0,87732.0,0.05708]
[1766906711305,0.0114071,87735.0,87724.0,0.09696]
[1766906711507,0.0114067,87738.0,87725.0,0.05708]
[1766906711810,0.011407,87736.0,87725.0,0.05708]
[1766906713504,0.011407,87736.0,87722.0,0.00017099]
[1766906713505,0.0114072,87734.0,87722.0,0.00017099]
[1766906713809,0.0114068,87737.0,87718.0,0.05708]
[1766906714210,0.0114068,87737.0,87719.0,0.0114091]
[1766906714712,0.0114068,87737.0,87719.0,0.01158009]
[1766906733923,0.0114071,87735.0,87719.0,0.01158009]
[1766906737325,0.0114067,87738.0,87721.0,0.0114088]
[1766906737538,0.00017099,87739.0,87723.0,0.0114085]
[1766906738226,0.01157759,87739.0,87723.0,0.0114085]
[1766906740833,0.00017099,87739.0,87720.0,0.0114089]
[1766906741027,0.0114067,87738.0,87720.0,0.0114089]
[1766906744032,0.11451153,87730.0,87719.0,0.00017099]
[1766906744425,0.11451153,87730.0,87720.0,0.01139]
[1766906746939,0.09951153,87730.0,87720.0,0.01139]
[1766906751239,0.011407,87736.0,87720.0,0.01139]
[1766906751447,0.11451153,87730.0,87720.0,0.01139]
[1766906754547,0.11451153,87730.0,87721.0,0.0114088]
[1766906754742,0.011407,87736.0,87721.0,0.0114088]
[1766906754949,0.01157759,87739.0,87720.0,0.0227989]
[1766906755146,0.0246299,87738.0,87720.0,0.0227989]
[1766906755446,0.0246299,87737.0,87722.0,0.0114087]
[1766906755656,0.01157759,87739.0,87722.0,0.0114087]
[1766906755856,0.02462991,87738.0,87722.0,0.0114087]
[1766906756058,0.02462991,87737.0,87722.0,0.0114087]
[1766906756256,0.01157759,87739.0,87722.0,0.0114087]
[1766906756458,0.02462994,87738.0,87722.0,0.0114087]
[1766906756658,0.02462994,87737.0,87722.0,0.0114087]
[1766906756862,0.01157759,87739.0,87722.0,0.0114087]
[1766906757057,0.02462989,87738.0,87722.0,0.0114087]
[1766906757259,0.02462989,87737.0,87722.0,0.0114087]
[1766906757555,0.02462985,87736.0,87722.0,0.0114087]
[1766906757858,0.01157759,87739.0,87722.0,0.0114087]
[1766906757859,0.02462985,87735.0,87722.0,0.0114087]
[1766906758051,0.01157759,87739.0,87722.0,0.0114087]
[1766906758252,0.02462982,87738.0,87722.0,0.0114087]
[1766906758560,0.01157759,87739.0,87722.0,0.0114087]
[1766906758561,0.02462982,87737.0,87722.0,0.0114087]
[1766906758758,0.02462982,87736.0,87722.0,0.0114087]
[1766906758958,0.02462982,87735.0,87722.0,0.0114087]
[1766906759258,0.01157759,87739.0,87722.0,0.0114087]
[1766906759559,0.02462978,87738.0,87722.0,0.0114087]
[1766906759859,0.02462978,87737.0,87722.0,0.0114087]
[1766906760049,0.02462978,87736.0,87722.0,0.0114087]
[1766906760249,0.02462978,87735.0,87722.0,0.0114087]
[1766906760546,0.01157759,87739.0,87722.0,0.0114087]
[1766906760750,0.02462973,87738.0,87722.0,0.0114087]
[1766906760947,0.02462973,87737.0,87722.0,0.0114087]
[1766906761150,0.02462973,87736.0,87722.0,0.0114087]
[1766906761362,0.01157759,87739.0,87722.0,0.0114087]
[1766906761363,0.02462973,87735.0,87722.0,0.0114087]
[1766906761560,0.01157759,87739.0,87722.0,0.0114087]
[1766906761762,0.0246297,87738.0,87722.0,0.0114087]
[1766906761955,0.0246297,87737.0,87722.0,0.0114087]
[1766906762159,0.0246297,87736.0,87723.0,0.01139]
[1766906762356,0.0246297,87735.0,87723.0,0.01139]
[1766906762655,0.01157759,87739.0,87723.0,0.01139]
[1766906762857,0.02462967,87738.0,87723.0,0.01139]
[1766906763153,0.02462967,87737.0,87723.0,0.01139]
[1766906763354,0.02462967,87736.0,87723.0,0.01139]
[1766906763554,0.02462967,87735.0,87723.0,0.01139]
[1766906763754,0.01157759,87739.0,87723.0,0.01139]
[1766906763954,0.02462965,87738.0,87723.0,0.01139]
[1766906764166,0.02462965,87737.0,87723.0,0.01139]
[1766906764355,0.02462965,87736.0,87723.0,0.01139]
[1766906764548,0.02462965,87735.0,87723.0,0.01139]
[1766906764753,0.01157759,87739.0,87723.0,0.01139]
[1766906764964,0.02462931,87738.0,87723.0,0.01139]
[1766906765155,0.02462931,87737.0,87723.0,0.01139]
[1766906765356,0.02462931,87736.0,87723.0,0.01139]
[1766906765654,0.02462931,87735.0,87723.0,0.01139]
[1766906765858,0.01157759,87739.0,87723.0,0.01139]
[1766906766056,0.02462915,87738.0,87724.0,0.0114084]
[1766906766257,0.02462915,87737.0,87724.0,0.0114084]
[1766906766456,0.02462915,87736.0,87724.0,0.0114084]
[1766906766665,0.02462915,87735.0,87724.0,0.0114084]
[1766906766867,0.01157759,87739.0,87724.0,0.0114084]
[1766906767066,0.02467934,87738.0,87724.0,0.0114084]
[1766906767268,0.02467934,87737.0,87724.0,0.0114084]
[1766906767459,0.02467934,87736.0,87724.0,0.0114084]
[1766906767660,0.01157759,87739.0,87724.0,0.0114084]
[1766906767861,0.0246793,87738.0,87724.0,0.0114084]
[1766906768168,0.0246793,87737.0,87725.0,0.0114083]
[1766906768370,0.00017099,87739.0,87725.0,0.0114083]
[1766906768566,0.0246792,87738.0,87725.0,0.0114083]
[1766906768767,0.0246792,87737.0,87725.0,0.0114083]
[1766906769067,0.00017099,87739.0,87725.0,0.0114083]
[1766906769261,0.02466967,87738.0,87725.0,0.0114083]
[1766906769461,0.02466967,87737.0,87725.0,0.0114083]
[1766906769661,0.00017099,87739.0,87725.0,0.0114083]
[1766906769864,0.02466966,87738.0,87725.0,0.0114083]
[1766906770070,0.02466966,87737.0,87725.0,0.0114083]
[1766906770273,0.00017099,87739.0,87725.0,0.0114083]
[1766906770571,0.0246696,87738.0,87725.0,0.0114083]
[1766906770869,0.0246696,87737.0,87727.0,0.011408]
[1766906771062,0.00017099,87739.0,87727.0,0.011408]
[1766906771263,0.02466946,87738.0,87727.0,0.011408]
[1766906771463,0.00017099,87739.0,87727.0,0.011408]
[1766906771771,0.02466933,87738.0,87727.0,0.011408]
[1766906771973,0.00017099,87739.0,87727.0,0.011408]
[1766906772167,0.02466933,87738.0,87727.0,0.011408]
[1766906772369,0.00017099,87739.0,87727.0,0.011408]
[1766906772562,0.02466918,87738.0,87727.0,0.011408]
[1766906772763,0.00017099,87739.0,87727.0,0.011408]
[1766906772970,0.02466913,87738.0,87727.0,0.011408]
[1766906773172,0.00017099,87739.0,87727.0,0.011408]
[1766906773470,0.02466882,87738.0,87727.0,0.011408]
[1766906773669,0.00017099,87739.0,87727.0,0.011408]
[1766906773870,0.02466852,87738.0,87727.0,0.011408]
[1766906774070,0.00017099,87739.0,87727.0,0.011408]
[1766906774371,0.02466844,87738.0,87727.0,0.011408]
[1766906774573,0.00017099,87739.0,87727.0,0.011408]
[1766906774771,0.02466837,87738.0,87727.0,0.011408]
[1766906774975,0.00017099,87739.0,87727.0,0.011408]
[1766906775173,0.02466837,87738.0,87727.0,0.011408]
[1766906775362,0.00017099,87739.0,87727.0,0.011408]
[1766906775564,0.02466828,87738.0,87727.0,0.011408]
[1766906775764,0.00017099,87739.0,87727.0,0.011408]
[1766906775965,0.02466828,87738.0,87727.0,0.011408]
[1766906776262,0.00017099,87739.0,87727.0,0.011408]
[1766906776462,0.02466628,87738.0,87727.0,0.011408]
[1766906776672,0.00017099,87739.0,87727.0,0.011408]
[1766906776872,0.02466625,87738.0,87727.0,0.011408]
[1766906777073,0.00017099,87739.0,87727.0,0.011408]
[1766906777274,0.02466633,87738.0,87727.0,0.011408]
[1766906777478,0.00017099,87739.0,87727.0,0.011408]
[1766906777676,0.02466634,87738.0,87727.0,0.011408]
[1766906777976,0.02466635,87737.0,87727.0,0.011408]
[1766906778178,0.02466635,87736.0,87727.0,0.011408]
[1766906778371,0.00017099,87739.0,87727.0,0.011408]
[1766906778676,0.02466657,87738.0,87724.0,0.0114084]
[1766906778877,0.02466657,87737.0,87724.0,0.0114084]
[1766906779075,0.02466657,87736.0,87724.0,0.0114084]
[1766906779278,0.01157749,87739.0,87724.0,0.0114084]
[1766906779474,0.02466687,87738.0,87724.0,0.0114084]
[1766906779673,0.02466687,87737.0,87724.0,0.0114084]
[1766906779973,0.02466687,87736.0,87724.0,0.0114084]
[1766906780173,0.01157749,87739.0,87724.0,0.0114084]
[1766906780372,0.02466723,87738.0,87724.0,0.0114084]
[1766906780573,0.02466723,87737.0,87724.0,0.0114084]
[1766906780781,0.02466723,87736.0,87724.0,0.0114084]
[1766906781078,0.01157749,87739.0,87723.0,0.01139]
[1766906781079,0.00017099,87739.0,87726.0,0.0114081]
[1766906781280,0.02466726,87738.0,87726.0,0.0114081]
[1766906781480,0.02466726,87737.0,87726.0,0.0114081]
[1766906781679,0.02466726,87736.0,87726.0,0.0114081]
[1766906781884,0.00017099,87739.0,87728.0,0.0114079]
[1766906782085,0.02466716,87738.0,87728.0,0.0114079]
[1766906782287,0.02466716,87737.0,87728.0,0.0114079]
[1766906782488,0.00017099,87739.0,87728.0,0.0114079]
[1766906782675,0.02466651,87738.0,87728.0,0.0114079]
[1766906782987,0.02466651,87737.0,87728.0,0.0114079]
[1766906783176,0.02466651,87736.0,87728.0,0.0114079]
[1766906783377,0.00017099,87739.0,87728.0,0.0114079]
[1766906783577,0.02466612,87738.0,87728.0,0.0114079]
[1766906783780,0.02466612,87737.0,87728.0,0.0114079]
[1766906784076,0.00017099,87739.0,87728.0,0.0114079]
[1766906784271,0.02466611,87738.0,87728.0,0.0114079]
[1766906784481,0.02466611,87737.0,87728.0,0.0114079]
[1766906784683,0.00017099,87739.0,87728.0,0.0114079]
[1766906784884,0.02466597,87738.0,87728.0,0.0114079]
[1766906785185,0.02466597,87737.0,87728.0,0.0114079]
[1766906785382,0.00017099,87739.0,87728.0,0.0114079]
[1766906785578,0.02466584,87738.0,87728.0,0.0114079]
[1766906785779,0.02466584,87737.0,87728.0,0.0114079]
[1766906786079,0.00017099,87739.0,87728.0,0.0114079]
[1766906786280,0.02466584,87738.0,87728.0,0.0114079]
[1766906786479,0.02466584,87737.0,87728.0,0.0114079]
[1766906786684,0.00017099,87739.0,87728.0,0.0114079]
[1766906786882,0.02466538,87738.0,87728.0,0.0114079]
[1766906787079,0.02466538,87737.0,87728.0,0.0114079]
[1766906787281,0.00017099,87739.0,87728.0,0.0114079]
[1766906787480,0.02466531,87738.0,87728.0,0.0114079]
[1766906787678,0.02466531,87737.0,87728.0,0.0114079]
[1766906787880,0.00017099,87739.0,87728.0,0.0114079]
[1766906788083,0.02466529,87738.0,87728.0,0.0114079]
[1766906788279,0.02466529,87737.0,87728.0,0.0114079]
[1766906788479,0.00017099,87739.0,87728.0,0.0114079]
[1766906788679,0.02466322,87738.0,87728.0,0.0114079]
[1766906788980,0.02466322,87737.0,87728.0,0.0114079]
[1766906789279,0.00017099,87739.0,87728.0,0.0114079]
[1766906789579,0.02466118,87738.0,87728.0,0.0114079]
[1766906789784,0.00017099,87739.0,87728.0,0.0114079]
[1766906789785,0.02466118,87737.0,87728.0,0.0114079]
[1766906789975,0.00017099,87739.0,87729.0,0.01139]
[1766906790174,0.02466017,87738.0,87729.0,0.01139]
[1766906790378,0.02466017,87737.0,87729.0,0.01139]
[1766906790579,0.00017099,87739.0,87729.0,0.01139]
[1766906790780,0.02465996,87738.0,87729.0,0.01139]
[1766906790976,0.02465996,87737.0,87729.0,0.01139]
[1766906791176,0.00017099,87739.0,87729.0,0.01139]
[1766906791385,0.02465913,87738.0,87729.0,0.01139]
[1766906791585,0.02465913,87737.0,87729.0,0.01139]
[1766906791785,0.00017099,87739.0,87729.0,0.01139]
[1766906791988,0.02465916,87738.0,87729.0,0.01139]
[1766906792180,0.02465916,87737.0,87729.0,0.01139]
[1766906792479,0.00017099,87739.0,87729.0,0.01139]
[1766906792679,0.0246592,87738.0,87729.0,0.01139]
[1766906792879,0.0246592,87737.0,87729.0,0.01139]
[1766906793081,0.00017099,87739.0,87729.0,0.01139]
[1766906793280,0.02465917,87738.0,87729.0,0.01139]
[1766906793479,0.02465917,87737.0,87729.0,0.01139]
[1766906793679,0.00017099,87739.0,87729.0,0.01139]
[1766906793883,0.02465924,87738.0,87729.0,0.01139]
[1766906794083,0.02465924,87737.0,87729.0,0.01139]
[1766906794285,0.00017099,87739.0,87729.0,0.01139]
[1766906794483,0.02465933,87738.0,87729.0,0.01139]
[1766906794685,0.02465933,87737.0,87729.0,0.01139]
[1766906794888,0.00017099,87739.0,87729.0,0.01139]
[1766906795083,0.02465933,87738.0,87729.0,0.01139]
[1766906795283,0.02465933,87737.0,87729.0,0.01139]
[1766906795483,0.00017099,87739.0,87729.0,0.01139]
[1766906795690,0.02465957,87738.0,87729.0,0.01139]
[1766906795878,0.02465957,87737.0,87729.0,0.01139]
[1766906796079,0.00017099,87739.0,87729.0,0.01139]
[1766906796280,0.02466039,87738.0,87729.0,0.01139]
[1766906796580,0.02466039,87737.0,87729.0,0.01139]
[1766906796781,0.02466039,87736.0,87729.0,0.01139]
[1766906796988,0.00017099,87739.0,87729.0,0.01139]
[1766906797190,0.02468774,87738.0,87729.0,0.01139]
[1766906797387,0.02468774,87737.0,87729.0,0.01139]
[1766906797587,0.02468774,87736.0,87729.0,0.01139]
[1766906797789,0.00017099,87739.0,87729.0,0.01139]
[1766906797989,0.02468954,87738.0,87729.0,0.01139]
[1766906798289,0.02468954,87737.0,87729.0,0.01139]
[1766906798493,0.02468954,87736.0,87729.0,0.01139]
[1766906798790,0.00017099,87739.0,87729.0,0.01139]
[1766906798990,0.02468965,87738.0,87729.0,0.01139]
[1766906799190,0.02468965,87737.0,87729.0,0.01139]
[1766906799394,0.02468965,87736.0,87729.0,0.01139]
[1766906799689,0.00017099,87739.0,87729.0,0.01139]
[1766906799890,0.02468986,87738.0,87729.0,0.01139]
[1766906800093,0.02468986,87737.0,87729.0,0.01139]
[1766906800393,0.02468986,87736.0,87729.0,0.01139]
[1766906800582,0.00017099,87739.0,87729.0,0.01139]
[1766906800783,0.02468999,87738.0,87729.0,0.01139]
[1766906800987,0.02468999,87737.0,87729.0,0.01139]
[1766906801181,0.02468999,87736.0,87727.0,0.011408]
[1766906801381,0.00017099,87739.0,87727.0,0.011408]
[1766906801588,0.02469005,87738.0,87727.0,0.011408]
[1766906801788,0.02469005,87737.0,87727.0,0.011408]
[1766906801989,0.02469005,87736.0,87727.0,0.011408]
[1766906802189,0.00017099,87739.0,87727.0,0.011408]
[1766906802396,0.02469009,87738.0,87727.0,0.011408]
[1766906802594,0.02469009,87737.0,87727.0,0.011408]
[1766906802796,0.02469009,87736.0,87727.0,0.011408]
[1766906803094,0.00017099,87739.0,87727.0,0.011408]
[1766906803294,0.02469006,87738.0,87727.0,0.011408]
[1766906803496,0.02469006,87737.0,87727.0,0.011408]
[1766906803694,0.00017099,87739.0,87727.0,0.011408]
[1766906803695,0.02469006,87736.0,87727.0,0.011408]
[1766906803898,0.00017099,87739.0,87727.0,0.011408]
[1766906804096,0.02469011,87738.0,87728.0,0.01139]
[1766906804310,0.02469011,87737.0,87728.0,0.01139]
[1766906804596,0.02469011,87736.0,87728.0,0.01139]
[1766906804796,0.00017099,87739.0,87729.0,0.0114078]
[1766906804998,0.02469022,87738.0,87729.0,0.0114078]
[1766906805301,0.02469022,87737.0,87729.0,0.0114078]
[1766906805500,0.00017099,87739.0,87729.0,0.0114078]
[1766906805795,0.02469069,87738.0,87731.0,0.0114075]
[1766906806003,0.02469069,87737.0,87731.0,0.0114075]
[1766906806202,0.00017099,87739.0,87731.0,0.0114075]
[1766906806404,0.02468959,87738.0,87731.0,0.0114075]
[1766906806593,0.02468959,87737.0,87731.0,0.0114075]
[1766906806891,0.00017099,87739.0,87731.0,0.0114075]
[1766906807091,0.02468957,87738.0,87731.0,0.0114075]
[1766906807292,0.02468957,87737.0,87731.0,0.0114075]
[1766906807488,0.00017099,87739.0,87728.0,0.0227979]
[1766906807692,0.02468923,87738.0,87728.0,0.0227979]
[1766906807897,0.02468923,87737.0,87728.0,0.0227979]
[1766906808096,0.00017099,87739.0,87728.0,0.0227979]
[1766906808290,0.02468926,87738.0,87728.0,0.0227979]
[1766906808501,0.02468926,87737.0,87728.0,0.0227979]
[1766906808702,0.00017099,87739.0,87728.0,0.0227979]
[1766906808902,0.02468899,87738.0,87728.0,0.0227979]
[1766906809201,0.02468899,87737.0,87728.0,0.0227979]
[1766906809403,0.00017099,87739.0,87728.0,0.0227979]
[1766906809603,0.02468879,87738.0,87728.0,0.0227979]
[1766906809901,0.02468879,87737.0,87728.0,0.0227979]
[1766906810102,0.00017099,87739.0,87728.0,0.01139]
[1766906810304,0.02468884,87738.0,87728.0,0.01139]
[1766906810502,0.02468884,87737.0,87728.0,0.01139]
[1766906810704,0.00017099,87739.0,87728.0,0.01139]
[1766906810903,0.02468885,87738.0,87728.0,0.01139]
[1766906811105,0.00017099,87739.0,87728.0,0.01139]
[1766906811106,0.02468885,87737.0,87728.0,0.01139]
[1766906811405,0.00017099,87739.0,87728.0,0.01139]
[1766906811600,0.02468878,87738.0,87728.0,0.01139]
[1766906811806,0.02468878,87737.0,87728.0,0.01139]
[1766906812000,0.00017099,87739.0,87728.0,0.01139]
[1766906812201,0.02468873,87738.0,87728.0,0.01139]
[1766906812401,0.02468873,87737.0,87728.0,0.01139]
[1766906812601,0.00017099,87739.0,87728.0,0.01139]
[1766906812810,0.02468862,87738.0,87728.0,0.01139]
[1766906813009,0.02468862,87737.0,87728.0,0.01139]
[1766906813209,0.00017099,87739.0,87728.0,0.01139]
[1766906813409,0.02468853,87738.0,87728.0,0.01139]
[1766906813610,0.02468853,87737.0,87728.0,0.01139]
[1766906813811,0.00017099,87739.0,87728.0,0.01139]
[1766906814110,0.02468853,87738.0,87728.0,0.01139]
[1766906814304,0.02468853,87737.0,87728.0,0.01139]
[1766906814505,0.00017099,87739.0,87728.0,0.01139]
[1766906814707,0.02468841,87738.0,87728.0,0.01139]
[1766906815005,0.02468841,87737.0,87728.0,0.01139]
[1766906815205,0.00017099,87739.0,87728.0,0.01139]
[1766906815405,0.0246884,87738.0,87728.0,0.01139]
[1766906815608,0.0246884,87737.0,87728.0,0.01139]
[1766906815908,0.00017099,87739.0,87728.0,0.01139]